[Event "Titled Tuesday Blitz June 27 Early 2023"]
[White "Maluco_do_Natal_00"]
[Black "Ozates, Tuna"]
[BlackFideId "6354521"]
[WhiteElo "2057"]
[BlackElo "2568"]
[Result "0-1"]
[Round "1"]
[TimeControl "180+2"]
[Date "2023.06.27"]
[WhiteClock "0:00:00"]
[BlackClock "0:01:56"]
[Board "228"]

1. e4 {[%clk 0:02:55]}  c5 {[%clk 0:02:58]} 2. Nf3 {[%clk 0:02:46]}  Nc6 {[%clk 0:02:58]} 3. d4 {[%clk 0:02:44]}  cxd4 {[%clk 0:02:58]} 4. Nxd4 {[%clk 0:02:44]}  Nf6 {[%clk 0:02:59]} 5. Nc3 {[%clk 0:02:44]}  e5 {[%clk 0:02:59]} 6. Ndb5 {[%clk 0:02:44]}  d6 {[%clk 0:02:59]} 7. Bg5 {[%clk 0:02:44]}  a6 {[%clk 0:02:59]} 8. Bxf6 {[%clk 0:02:44]}  gxf6 {[%clk 0:02:59]} 9. Na3 {[%clk 0:02:44]}  b5 {[%clk 0:02:58]} 10. Nd5 {[%clk 0:02:45]}  f5 {[%clk 0:02:58]} 11. c3 {[%clk 0:02:45]}  Be6 {[%clk 0:02:55]} 12. exf5 {[%clk 0:02:38]}  Bxf5 {[%clk 0:02:54]} 13. Nc2 {[%clk 0:02:38]}  Bg7 {[%clk 0:02:54]} 14. Nce3 {[%clk 0:02:38]}  Bg6 {[%clk 0:02:54]} 15. h4 {[%clk 0:02:24]}  h5 {[%clk 0:02:51]} 16. Be2 {[%clk 0:02:19]}  f5 {[%clk 0:02:51]} 17. g3 {[%clk 0:01:47]}  Kf7 {[%clk 0:02:50]} 18. a4 {[%clk 0:01:34]}  Rb8 {[%clk 0:02:49]} 19. axb5 {[%clk 0:01:34]}  axb5 {[%clk 0:02:50]} 20. Qb3 {[%clk 0:01:07]}  Kf8 {[%clk 0:02:43]} 21. Ra6 {[%clk 0:00:55]}  Qc8 {[%clk 0:02:39]} 22. Qa3 {[%clk 0:00:37]}  b4 {[%clk 0:02:39]} 23. cxb4 {[%clk 0:00:30]}  Nd4 {[%clk 0:02:38]} 24. Bd1 {[%clk 0:00:16]}  f4 {[%clk 0:02:31]} 25. gxf4 {[%clk 0:00:09]}  Be4 {[%clk 0:02:31]} 26. Rg1 {[%clk 0:00:08]}  Nf3+ {[%clk 0:02:24]} 27. Bxf3 {[%clk 0:00:07]}  Bxf3 {[%clk 0:02:24]} 28. Nd1 {[%clk 0:00:04]}  Bxd5 {[%clk 0:02:20]} 29. b5 {[%clk 0:00:04]}  Qc5 {[%clk 0:02:16]} 30. Rxd6 {[%clk 0:00:02]}  Qxa3 {[%clk 0:02:16]} 31. bxa3 {[%clk 0:00:01]}  Rxb5 {[%clk 0:02:12]} 32. fxe5 {[%clk 0:00:01]}  Bxe5 {[%clk 0:02:11]} 33. Rd8+ {[%clk 0:00:01]}  Ke7 {[%clk 0:02:10]} 34. Rxh8 {[%clk 0:00:01]}  Bxh8 {[%clk 0:02:10]} 35. Rg5 {[%clk 0:00:02]}  Bc4 {[%clk 0:01:55]} 36. Rxb5 {[%clk 0:00:00]}  Bxb5 {[%clk 0:01:56]} 0-1


[Site "https://www.chess.com"]

[Event "Titled Tuesday Blitz June 27 Early 2023"]
[White "Ho, In Hei Henry"]
[Black "Perez, Maximiliano"]
[WhiteFideId "6002552"]
[BlackFideId "117234"]
[WhiteElo "2008"]
[BlackElo "2561"]
[Result "0-1"]
[Round "1"]
[TimeControl "180+2"]
[Date "2023.06.27"]
[WhiteClock "0:00:00"]
[BlackClock "0:01:10"]
[Board "232"]

1. d4 {[%clk 0:02:58]}  Nf6 {[%clk 0:02:56]} 2. Nf3 {[%clk 0:02:57]}  g6 {[%clk 0:02:56]} 3. Bf4 {[%clk 0:02:58]}  Bg7 {[%clk 0:02:57]} 4. e3 {[%clk 0:02:59]}  O-O {[%clk 0:02:57]} 5. Bd3 {[%clk 0:02:59]}  d6 {[%clk 0:02:58]} 6. O-O {[%clk 0:02:59]}  Nc6 {[%clk 0:02:57]} 7. h3 {[%clk 0:02:59]}  Nd7 {[%clk 0:02:57]} 8. Re1 {[%clk 0:02:58]}  e5 {[%clk 0:02:58]} 9. Bh2 {[%clk 0:02:49]}  f5 {[%clk 0:02:57]} 10. dxe5 {[%clk 0:02:31]}  dxe5 {[%clk 0:02:58]} 11. Bc4+ {[%clk 0:02:28]}  Kh8 {[%clk 0:02:56]} 12. Nc3 {[%clk 0:02:27]}  e4 {[%clk 0:02:50]} 13. Nd4 {[%clk 0:02:26]}  Nxd4 {[%clk 0:02:42]} 14. exd4 {[%clk 0:02:26]}  Nb6 {[%clk 0:02:40]} 15. Bb3 {[%clk 0:02:18]}  c6 {[%clk 0:02:38]} 16. Ne2 {[%clk 0:02:15]}  g5 {[%clk 0:02:33]} 17. c3 {[%clk 0:02:14]}  f4 {[%clk 0:02:33]} 18. Kh1 {[%clk 0:02:05]}  f3 {[%clk 0:02:11]} 19. Ng3 {[%clk 0:01:58]}  fxg2+ {[%clk 0:02:12]} 20. Kxg2 {[%clk 0:01:58]}  Qf6 {[%clk 0:02:12]} 21. Nxe4 {[%clk 0:01:42]}  Qh6 {[%clk 0:02:12]} 22. Qd3 {[%clk 0:01:29]}  Nd5 {[%clk 0:02:07]} 23. Bxd5 {[%clk 0:01:23]}  cxd5 {[%clk 0:02:08]} 24. Nd6 {[%clk 0:01:22]}  Bxh3+ {[%clk 0:02:01]} 25. Kg1 {[%clk 0:01:09]}  Bg4 {[%clk 0:01:57]} 26. Re7 {[%clk 0:01:03]}  Qf6 {[%clk 0:01:56]} 27. Qe3 {[%clk 0:00:55]}  Kg8 {[%clk 0:01:38]} 28. Re1 {[%clk 0:00:50]}  Bf3 {[%clk 0:01:34]} 29. Bg3 {[%clk 0:00:47]}  Qh6 {[%clk 0:01:31]} 30. Qe6+ {[%clk 0:00:34]}  Qxe6 {[%clk 0:01:30]} 31. R1xe6 {[%clk 0:00:32]}  b6 {[%clk 0:01:31]} 32. Be5 {[%clk 0:00:30]}  Bxe5 {[%clk 0:01:19]} 33. Rxe5 {[%clk 0:00:30]}  Bh5 {[%clk 0:01:14]} 34. Rxg5+ {[%clk 0:00:29]}  Bg6 {[%clk 0:01:14]} 35. Rge5 {[%clk 0:00:21]}  Rf6 {[%clk 0:01:13]} 36. Nb5 {[%clk 0:00:19]}  Raf8 {[%clk 0:01:13]} 37. Re2 {[%clk 0:00:19]}  a6 {[%clk 0:01:13]} 38. Nc7 {[%clk 0:00:19]}  Be4 {[%clk 0:01:13]} 39. Nxa6 {[%clk 0:00:14]}  Rg6+ {[%clk 0:01:10]} 40. Kf1 {[%clk 0:00:14]}  Bd3 {[%clk 0:01:10]} 41. Nc7 {[%clk 0:00:13]}  Bxe2+ {[%clk 0:01:10]} 42. Kxe2 {[%clk 0:00:13]}  Rgf6 {[%clk 0:01:10]} 43. Nxd5 {[%clk 0:00:12]}  Rxf2+ {[%clk 0:01:11]} 44. Kd3 {[%clk 0:00:12]}  b5 {[%clk 0:01:11]} 45. b3 {[%clk 0:00:09]}  h5 {[%clk 0:01:10]} 46. Re5 {[%clk 0:00:06]}  h4 {[%clk 0:01:10]} 47. Rh5 {[%clk 0:00:06]}  R2f3+ {[%clk 0:01:09]} 48. Ke4 {[%clk 0:00:05]}  h3 {[%clk 0:01:10]} 49. Ne7+ {[%clk 0:00:04]}  Kg7 {[%clk 0:01:10]} 50. Nf5+ {[%clk 0:00:00]}  R3xf5 {[%clk 0:01:10]} 0-1


[Site "https://www.chess.com"]

[Event "Titled Tuesday Blitz June 27 Early 2023"]
[White "Alexanian, Nelli"]
[Black "Tikhonov, Viacheslav"]
[WhiteFideId "4170539"]
[BlackFideId "44196407"]
[WhiteElo "1954"]
[BlackElo "2558"]
[Result "0-1"]
[Round "1"]
[TimeControl "180+2"]
[Date "2023.06.27"]
[WhiteClock "0:00:00"]
[BlackClock "0:00:12"]
[Board "234"]

1. d4 {[%clk 0:02:56]}  Nf6 {[%clk 0:02:58]} 2. c4 {[%clk 0:02:55]}  e6 {[%clk 0:02:56]} 3. Nc3 {[%clk 0:02:52]}  Bb4 {[%clk 0:02:55]} 4. e3 {[%clk 0:02:50]}  O-O {[%clk 0:02:54]} 5. Ne2 {[%clk 0:02:48]}  d5 {[%clk 0:02:46]} 6. a3 {[%clk 0:02:44]}  Be7 {[%clk 0:02:45]} 7. cxd5 {[%clk 0:02:35]}  exd5 {[%clk 0:02:45]} 8. Nf4 {[%clk 0:02:21]}  c6 {[%clk 0:02:44]} 9. Bd3 {[%clk 0:02:19]}  Re8 {[%clk 0:02:32]} 10. O-O {[%clk 0:02:17]}  Bd6 {[%clk 0:02:30]} 11. Nce2 {[%clk 0:02:11]}  a5 {[%clk 0:02:24]} 12. b3 {[%clk 0:01:56]}  Na6 {[%clk 0:02:18]} 13. Rb1 {[%clk 0:01:54]}  Qe7 {[%clk 0:02:14]} 14. Ra1 {[%clk 0:01:17]}  h6 {[%clk 0:02:07]} 15. Ng3 {[%clk 0:01:08]}  Bd7 {[%clk 0:01:46]} 16. Nf5 {[%clk 0:00:57]}  Bxf5 {[%clk 0:01:42]} 17. Bxf5 {[%clk 0:00:57]}  Bxf4 {[%clk 0:01:39]} 18. exf4 {[%clk 0:00:56]}  Ne4 {[%clk 0:01:39]} 19. Re1 {[%clk 0:00:48]}  Qf6 {[%clk 0:01:17]} 20. Bxe4 {[%clk 0:00:41]}  dxe4 {[%clk 0:01:13]} 21. Be3 {[%clk 0:00:38]}  Nc7 {[%clk 0:01:11]} 22. Qc2 {[%clk 0:00:35]}  Nd5 {[%clk 0:01:10]} 23. Qd2 {[%clk 0:00:29]}  a4 {[%clk 0:01:00]} 24. bxa4 {[%clk 0:00:27]}  Rxa4 {[%clk 0:00:59]} 25. Reb1 {[%clk 0:00:27]}  b5 {[%clk 0:00:53]} 26. Rb3 {[%clk 0:00:27]}  Rea8 {[%clk 0:00:51]} 27. g4 {[%clk 0:00:25]}  Nb6 {[%clk 0:00:46]} 28. Qc2 {[%clk 0:00:24]}  Nc4 {[%clk 0:00:45]} 29. Qxe4 {[%clk 0:00:23]}  b4 {[%clk 0:00:39]} 30. g5 {[%clk 0:00:21]}  hxg5 {[%clk 0:00:36]} 31. fxg5 {[%clk 0:00:21]}  Qd6 {[%clk 0:00:33]} 32. Qd3 {[%clk 0:00:20]}  bxa3 {[%clk 0:00:30]} 33. Rb7 {[%clk 0:00:18]}  Qd5 {[%clk 0:00:28]} 34. g6 {[%clk 0:00:16]}  f6 {[%clk 0:00:26]} 35. Bh6 {[%clk 0:00:13]}  gxh6 {[%clk 0:00:22]} 36. Rh7 {[%clk 0:00:12]}  a2 {[%clk 0:00:17]} 37. g7 {[%clk 0:00:11]}  Qg5+ {[%clk 0:00:14]} 38. Kh1 {[%clk 0:00:11]}  f5 {[%clk 0:00:15]} 39. Rh8+ {[%clk 0:00:09]}  Kxg7 {[%clk 0:00:14]} 40. Rxa8 {[%clk 0:00:09]}  Rxa8 {[%clk 0:00:15]} 41. Qe2 {[%clk 0:00:09]}  Nd6 {[%clk 0:00:13]} 42. Qe5+ {[%clk 0:00:08]}  Qf6 {[%clk 0:00:12]} 43. Rg1+ {[%clk 0:00:08]}  Kf7 {[%clk 0:00:12]} 44. Ra1 {[%clk 0:00:04]}  Qxe5 {[%clk 0:00:12]} 45. dxe5 {[%clk 0:00:00]}  Nc4 {[%clk 0:00:12]} 0-1


[Site "https://www.chess.com"]

[Event "Titled Tuesday Blitz June 27 Early 2023"]
[White "Fonseca Manrique, Enrique"]
[Black "Gyulamiryan-koryun"]
[WhiteFideId "5114330"]
[WhiteElo "2557"]
[BlackElo "1948"]
[Result "1-0"]
[Round "1"]
[TimeControl "180+2"]
[Date "2023.06.27"]
[WhiteClock "0:00:09"]
[BlackClock "0:00:00"]
[Board "235"]

1. e4 {[%clk 0:02:56]}  c6 {[%clk 0:02:58]} 2. d4 {[%clk 0:02:56]}  d5 {[%clk 0:02:58]} 3. e5 {[%clk 0:02:56]}  Bf5 {[%clk 0:02:57]} 4. Nf3 {[%clk 0:02:57]}  e6 {[%clk 0:02:55]} 5. Be2 {[%clk 0:02:57]}  c5 {[%clk 0:02:53]} 6. O-O {[%clk 0:02:57]}  Nc6 {[%clk 0:02:53]} 7. Be3 {[%clk 0:02:56]}  Qb6 {[%clk 0:02:51]} 8. Nc3 {[%clk 0:02:52]}  Qxb2 {[%clk 0:02:41]} 9. Qe1 {[%clk 0:02:51]}  cxd4 {[%clk 0:02:35]} 10. Nxd4 {[%clk 0:02:46]}  Bb4 {[%clk 0:01:56]} 11. Nxf5 {[%clk 0:02:10]}  exf5 {[%clk 0:01:42]} 12. Bd2 {[%clk 0:02:02]}  Qxc2 {[%clk 0:00:48]} 13. a3 {[%clk 0:01:39]}  Bxc3 {[%clk 0:00:47]} 14. Bxc3 {[%clk 0:01:40]}  Nge7 {[%clk 0:00:48]} 15. e6 {[%clk 0:01:34]}  f6 {[%clk 0:00:45]} 16. Rb1 {[%clk 0:01:22]}  b6 {[%clk 0:00:35]} 17. Rc1 {[%clk 0:01:17]}  Qe4 {[%clk 0:00:32]} 18. Qd2 {[%clk 0:01:07]}  Qxe6 {[%clk 0:00:31]} 19. Bh5+ {[%clk 0:00:58]}  g6 {[%clk 0:00:29]} 20. Rfe1 {[%clk 0:00:58]}  Qf7 {[%clk 0:00:26]} 21. Bf3 {[%clk 0:00:51]}  O-O {[%clk 0:00:22]} 22. Re2 {[%clk 0:00:42]}  Rfe8 {[%clk 0:00:22]} 23. Rce1 {[%clk 0:00:42]}  Rad8 {[%clk 0:00:19]} 24. h4 {[%clk 0:00:40]}  Kg7 {[%clk 0:00:19]} 25. h5 {[%clk 0:00:40]}  d4 {[%clk 0:00:18]} 26. Bb2 {[%clk 0:00:32]}  Ne5 {[%clk 0:00:16]} 27. Rxe5 {[%clk 0:00:20]}  fxe5 {[%clk 0:00:16]} 28. Rxe5 {[%clk 0:00:20]}  Nc6 {[%clk 0:00:13]} 29. Rxe8 {[%clk 0:00:16]}  Qxe8 {[%clk 0:00:13]} 30. h6+ {[%clk 0:00:16]}  Kg8 {[%clk 0:00:09]} 31. Qf4 {[%clk 0:00:15]}  Qe6 {[%clk 0:00:09]} 32. Bxc6 {[%clk 0:00:12]}  Qxc6 {[%clk 0:00:08]} 33. Bxd4 {[%clk 0:00:13]}  Qd6 {[%clk 0:00:06]} 34. Be5 {[%clk 0:00:13]}  Qd1+ {[%clk 0:00:06]} 35. Kh2 {[%clk 0:00:14]}  Qh5+ {[%clk 0:00:07]} 36. Kg3 {[%clk 0:00:12]}  Rd3+ {[%clk 0:00:05]} 37. f3 {[%clk 0:00:12]}  g5 {[%clk 0:00:04]} 38. Qc4+ {[%clk 0:00:10]}  Qf7 {[%clk 0:00:01]} 39. Qxd3 {[%clk 0:00:09]}  f4+ {[%clk 0:00:02]} 40. Kf2 {[%clk 0:00:10]}  Qa2+ {[%clk 0:00:02]} 41. Qe2 {[%clk 0:00:09]}  Qxa3 {[%clk 0:00:00]} 42. Qc4+ {[%clk 0:00:09]} 1-0


[Site "https://www.chess.com"]

[Event "Titled Tuesday Blitz June 27 Early 2023"]
[White "Castillo Pena, Patricia Evarista"]
[Black "Krutko, Anatoly"]
[WhiteFideId "6412106"]
[BlackFideId "4185862"]
[WhiteElo "1911"]
[BlackElo "2556"]
[Result "0-1"]
[Round "1"]
[TimeControl "180+2"]
[Date "2023.06.27"]
[WhiteClock "0:00:00"]
[BlackClock "0:00:33"]
[Board "236"]

1. d4 {[%clk 0:02:58]}  g6 {[%clk 0:02:44]} 2. e4 {[%clk 0:02:56]}  Bg7 {[%clk 0:02:44]} 3. Nf3 {[%clk 0:02:54]}  d6 {[%clk 0:02:44]} 4. Nc3 {[%clk 0:02:53]}  a6 {[%clk 0:02:44]} 5. Be3 {[%clk 0:02:53]}  b5 {[%clk 0:02:44]} 6. a3 {[%clk 0:02:53]}  Bb7 {[%clk 0:02:45]} 7. Bd3 {[%clk 0:02:49]}  Nd7 {[%clk 0:02:45]} 8. O-O {[%clk 0:02:48]}  c5 {[%clk 0:02:43]} 9. dxc5 {[%clk 0:02:21]}  Nxc5 {[%clk 0:02:43]} 10. Re1 {[%clk 0:02:08]}  Nxd3 {[%clk 0:02:31]} 11. cxd3 {[%clk 0:02:05]}  Nf6 {[%clk 0:02:31]} 12. Qd2 {[%clk 0:02:03]}  O-O {[%clk 0:02:30]} 13. Rad1 {[%clk 0:02:01]}  d5 {[%clk 0:02:29]} 14. e5 {[%clk 0:01:54]}  Ng4 {[%clk 0:02:29]} 15. Bf4 {[%clk 0:01:50]}  f6 {[%clk 0:02:16]} 16. h3 {[%clk 0:01:45]}  fxe5 {[%clk 0:02:10]} 17. Nxe5 {[%clk 0:01:43]}  Bxe5 {[%clk 0:01:51]} 18. Bxe5 {[%clk 0:01:38]}  Nxf2 {[%clk 0:01:43]} 19. Qh6 {[%clk 0:01:30]}  Rf7 {[%clk 0:01:35]} 20. Rd2 {[%clk 0:01:19]}  Qb6 {[%clk 0:01:22]} 21. d4 {[%clk 0:01:03]}  Ne4 {[%clk 0:01:22]} 22. Nxe4 {[%clk 0:01:00]}  dxe4 {[%clk 0:01:21]} 23. Rf2 {[%clk 0:00:58]}  Raf8 {[%clk 0:01:13]} 24. Ref1 {[%clk 0:00:56]}  Rf6 {[%clk 0:01:01]} 25. Bxf6 {[%clk 0:00:41]}  exf6 {[%clk 0:01:00]} 26. Qe3 {[%clk 0:00:36]}  f5 {[%clk 0:00:58]} 27. Rc1 {[%clk 0:00:26]}  Rd8 {[%clk 0:00:49]} 28. Rd2 {[%clk 0:00:25]}  Bd5 {[%clk 0:00:49]} 29. Rc5 {[%clk 0:00:23]}  Qd6 {[%clk 0:00:48]} 30. g3 {[%clk 0:00:18]}  Rf8 {[%clk 0:00:47]} 31. Rdc2 {[%clk 0:00:14]}  Bc4 {[%clk 0:00:41]} 32. b3 {[%clk 0:00:12]}  Bd3 {[%clk 0:00:38]} 33. R2c3 {[%clk 0:00:11]}  f4 {[%clk 0:00:35]} 34. gxf4 {[%clk 0:00:10]}  Qxf4 {[%clk 0:00:35]} 35. Qxf4 {[%clk 0:00:10]}  Rxf4 {[%clk 0:00:36]} 36. Rc8+ {[%clk 0:00:07]}  Kg7 {[%clk 0:00:37]} 37. R3c7+ {[%clk 0:00:07]}  Kh6 {[%clk 0:00:37]} 38. Rc6 {[%clk 0:00:05]}  e3 {[%clk 0:00:34]} 39. Re8 {[%clk 0:00:04]}  e2 {[%clk 0:00:34]} 40. Rce6 {[%clk 0:00:00]}  Rxd4 {[%clk 0:00:33]} 0-1


[Site "https://www.chess.com"]

[Event "Titled Tuesday Blitz June 27 Early 2023"]
[White "Viasus, Juan Diego"]
[Black "ElDivis"]
[WhiteFideId "4464346"]
[WhiteElo "1456"]
[BlackElo "2556"]
[Result "0-1"]
[Round "1"]
[TimeControl "180+2"]
[Date "2023.06.27"]
[WhiteClock "0:01:12"]
[BlackClock "0:01:50"]
[Board "238"]

1. c4 {[%clk 0:03:00]}  g6 {[%clk 0:02:58]} 2. Nc3 {[%clk 0:03:00]}  Bg7 {[%clk 0:02:58]} 3. g3 {[%clk 0:03:01]}  c5 {[%clk 0:02:58]} 4. Bg2 {[%clk 0:03:01]}  Nc6 {[%clk 0:02:59]} 5. Nf3 {[%clk 0:03:02]}  e5 {[%clk 0:02:58]} 6. d3 {[%clk 0:02:59]}  Nge7 {[%clk 0:02:59]} 7. O-O {[%clk 0:02:59]}  O-O {[%clk 0:02:58]} 8. Bg5 {[%clk 0:02:57]}  h6 {[%clk 0:02:56]} 9. Bxe7 {[%clk 0:02:57]}  Qxe7 {[%clk 0:02:57]} 10. Nd2 {[%clk 0:02:57]}  d6 {[%clk 0:02:55]} 11. a3 {[%clk 0:02:54]}  a5 {[%clk 0:02:53]} 12. Nd5 {[%clk 0:02:35]}  Qd8 {[%clk 0:02:52]} 13. Rb1 {[%clk 0:02:30]}  Be6 {[%clk 0:02:49]} 14. b4 {[%clk 0:02:24]}  axb4 {[%clk 0:02:49]} 15. axb4 {[%clk 0:02:24]}  Bxd5 {[%clk 0:02:49]} 16. cxd5 {[%clk 0:02:16]}  Nxb4 {[%clk 0:02:49]} 17. Nc4 {[%clk 0:02:16]}  b5 {[%clk 0:02:49]} 18. Ne3 {[%clk 0:02:15]}  f5 {[%clk 0:02:44]} 19. Nc2 {[%clk 0:02:15]}  Nxc2 {[%clk 0:02:36]} 20. Qxc2 {[%clk 0:02:16]}  b4 {[%clk 0:02:37]} 21. Qc4 {[%clk 0:02:15]}  Qb6 {[%clk 0:02:29]} 22. Ra1 {[%clk 0:02:14]}  Kh7 {[%clk 0:02:26]} 23. Rfb1 {[%clk 0:02:09]}  Qb7 {[%clk 0:02:05]} 24. h4 {[%clk 0:01:45]}  h5 {[%clk 0:01:56]} 25. Qb3 {[%clk 0:01:33]}  Rxa1 {[%clk 0:01:53]} 26. Rxa1 {[%clk 0:01:33]}  Ra8 {[%clk 0:01:53]} 27. Qb2 {[%clk 0:01:12]}  e4 {[%clk 0:01:50]} 0-1


[Site "https://www.chess.com"]

[Event "Titled Tuesday Blitz June 27 Early 2023"]
[White "Taspinar, Yanki"]
[Black "So, Wesley"]
[WhiteFideId "34561188"]
[BlackFideId "5202213"]
[WhiteElo "2688"]
[BlackElo "3103"]
[Result "0-1"]
[Round "2"]
[TimeControl "180+2"]
[Date "2023.06.27"]
[WhiteClock "0:00:01"]
[BlackClock "0:00:26"]
[Board "2"]

1. Nf3 {[%clk 0:02:56]}  c5 {[%clk 0:02:58]} 2. g3 {[%clk 0:02:55]}  d5 {[%clk 0:02:56]} 3. Bg2 {[%clk 0:02:55]}  Nc6 {[%clk 0:02:56]} 4. d4 {[%clk 0:02:55]}  e6 {[%clk 0:02:52]} 5. O-O {[%clk 0:02:55]}  Nf6 {[%clk 0:02:53]} 6. c4 {[%clk 0:02:52]}  dxc4 {[%clk 0:02:54]} 7. dxc5 {[%clk 0:02:52]}  Qxd1 {[%clk 0:02:54]} 8. Rxd1 {[%clk 0:02:53]}  Bxc5 {[%clk 0:02:54]} 9. Nbd2 {[%clk 0:02:53]}  c3 {[%clk 0:02:55]} 10. bxc3 {[%clk 0:02:54]}  O-O {[%clk 0:02:55]} 11. Nb3 {[%clk 0:02:54]}  Be7 {[%clk 0:02:56]} 12. Nfd4 {[%clk 0:02:49]}  Nxd4 {[%clk 0:02:56]} 13. cxd4 {[%clk 0:02:46]}  Nd5 {[%clk 0:02:56]} 14. Bb2 {[%clk 0:02:29]}  Bd7 {[%clk 0:02:41]} 15. e4 {[%clk 0:02:09]}  Nb6 {[%clk 0:02:41]} 16. Nc5 {[%clk 0:01:53]}  Bc6 {[%clk 0:02:22]} 17. Rac1 {[%clk 0:01:34]}  Rfd8 {[%clk 0:02:19]} 18. Nd3 {[%clk 0:00:47]}  Rac8 {[%clk 0:02:14]} 19. Nf4 {[%clk 0:00:31]}  Kf8 {[%clk 0:01:57]} 20. h4 {[%clk 0:00:26]}  Ba4 {[%clk 0:01:55]} 21. Rxc8 {[%clk 0:00:23]}  Rxc8 {[%clk 0:01:56]} 22. Rc1 {[%clk 0:00:23]}  Nc4 {[%clk 0:01:48]} 23. Bf1 {[%clk 0:00:23]}  Nd6 {[%clk 0:01:13]} 24. Rxc8+ {[%clk 0:00:22]}  Nxc8 {[%clk 0:01:14]} 25. d5 {[%clk 0:00:23]}  exd5 {[%clk 0:01:06]} 26. Nxd5 {[%clk 0:00:23]}  Bc5 {[%clk 0:01:06]} 27. h5 {[%clk 0:00:21]}  Nd6 {[%clk 0:01:03]} 28. Bd3 {[%clk 0:00:22]}  Bc6 {[%clk 0:01:01]} 29. Kf1 {[%clk 0:00:20]}  f5 {[%clk 0:00:58]} 30. f3 {[%clk 0:00:19]}  Kf7 {[%clk 0:00:50]} 31. Ke2 {[%clk 0:00:19]}  b5 {[%clk 0:00:43]} 32. Be5 {[%clk 0:00:16]}  Nc4 {[%clk 0:00:40]} 33. Bc3 {[%clk 0:00:12]}  fxe4 {[%clk 0:00:38]} 34. fxe4 {[%clk 0:00:12]}  Bd6 {[%clk 0:00:36]} 35. Bxc4 {[%clk 0:00:06]}  bxc4 {[%clk 0:00:37]} 36. Kf3 {[%clk 0:00:05]}  g6 {[%clk 0:00:34]} 37. hxg6+ {[%clk 0:00:05]}  hxg6 {[%clk 0:00:35]} 38. Ne3 {[%clk 0:00:05]}  Bb5 {[%clk 0:00:32]} 39. Nd5 {[%clk 0:00:05]}  g5 {[%clk 0:00:27]} 40. Kg4 {[%clk 0:00:04]}  Kg6 {[%clk 0:00:27]} 41. Ne3 {[%clk 0:00:03]}  Bc5 {[%clk 0:00:26]} 42. Nf5 {[%clk 0:00:04]}  Bd7 {[%clk 0:00:26]} 43. Be5 {[%clk 0:00:02]}  Bb4 {[%clk 0:00:24]} 44. Kf3 {[%clk 0:00:02]}  Bxf5 {[%clk 0:00:24]} 45. exf5+ {[%clk 0:00:03]}  Kxf5 {[%clk 0:00:25]} 46. Bd4 {[%clk 0:00:04]}  g4+ {[%clk 0:00:25]} 47. Ke3 {[%clk 0:00:04]}  a6 {[%clk 0:00:25]} 48. Bb2 {[%clk 0:00:04]}  Bc5+ {[%clk 0:00:25]} 49. Ke2 {[%clk 0:00:03]}  Ke4 {[%clk 0:00:25]} 50. Bc1 {[%clk 0:00:01]}  Bd6 {[%clk 0:00:26]} 0-1


[Site "https://www.chess.com"]

[Event "Titled Tuesday Blitz June 27 Early 2023"]
[White "Lazavik, Denis"]
[Black "Korchmar, Vasiliy"]
[WhiteFideId "13515110"]
[BlackFideId "24131750"]
[WhiteElo "3028"]
[BlackElo "2673"]
[Result "1-0"]
[Round "2"]
[TimeControl "180+2"]
[Date "2023.06.27"]
[WhiteClock "0:00:11"]
[BlackClock "0:00:00"]
[Board "6"]

1. d4 {[%clk 0:03:00]}  d5 {[%clk 0:03:00]} 2. c4 {[%clk 0:03:01]}  c6 {[%clk 0:03:00]} 3. Nf3 {[%clk 0:03:01]}  Nf6 {[%clk 0:03:01]} 4. Qc2 {[%clk 0:03:02]}  dxc4 {[%clk 0:02:55]} 5. Qxc4 {[%clk 0:03:01]}  Bg4 {[%clk 0:02:52]} 6. Nc3 {[%clk 0:03:00]}  e6 {[%clk 0:02:50]} 7. e4 {[%clk 0:02:59]}  Nbd7 {[%clk 0:02:47]} 8. Be2 {[%clk 0:02:57]}  Be7 {[%clk 0:02:46]} 9. O-O {[%clk 0:02:56]}  O-O {[%clk 0:02:47]} 10. Rd1 {[%clk 0:02:56]}  Bh5 {[%clk 0:02:35]} 11. Bf4 {[%clk 0:02:49]}  Rc8 {[%clk 0:02:34]} 12. Qb3 {[%clk 0:02:47]}  Qb6 {[%clk 0:02:31]} 13. Qc2 {[%clk 0:02:45]}  Rfd8 {[%clk 0:02:29]} 14. h3 {[%clk 0:02:43]}  Bg6 {[%clk 0:02:23]} 15. a3 {[%clk 0:01:27]}  c5 {[%clk 0:02:14]} 16. Be3 {[%clk 0:01:07]}  Qc6 {[%clk 0:02:05]} 17. Bb5 {[%clk 0:00:57]}  Qb6 {[%clk 0:02:06]} 18. Bd3 {[%clk 0:00:48]}  c4 {[%clk 0:01:26]} 19. Be2 {[%clk 0:00:47]}  Qc6 {[%clk 0:01:27]} 20. Nd2 {[%clk 0:00:45]}  b5 {[%clk 0:01:28]} 21. Bf3 {[%clk 0:00:45]}  a5 {[%clk 0:01:14]} 22. Ne2 {[%clk 0:00:35]}  Qc7 {[%clk 0:01:01]} 23. Nf4 {[%clk 0:00:34]}  Nb6 {[%clk 0:00:46]} 24. Nxg6 {[%clk 0:00:31]}  hxg6 {[%clk 0:00:46]} 25. Rac1 {[%clk 0:00:31]}  b4 {[%clk 0:00:44]} 26. axb4 {[%clk 0:00:29]}  axb4 {[%clk 0:00:45]} 27. Nf1 {[%clk 0:00:23]}  e5 {[%clk 0:00:38]} 28. Qe2 {[%clk 0:00:22]}  exd4 {[%clk 0:00:28]} 29. Bxd4 {[%clk 0:00:22]}  Bc5 {[%clk 0:00:28]} 30. Bxc5 {[%clk 0:00:17]}  Qxc5 {[%clk 0:00:28]} 31. Rxd8+ {[%clk 0:00:18]}  Rxd8 {[%clk 0:00:29]} 32. Ne3 {[%clk 0:00:19]}  c3 {[%clk 0:00:28]} 33. bxc3 {[%clk 0:00:16]}  bxc3 {[%clk 0:00:29]} 34. Qc2 {[%clk 0:00:16]}  Rc8 {[%clk 0:00:25]} 35. Rb1 {[%clk 0:00:12]}  Nfd7 {[%clk 0:00:21]} 36. Be2 {[%clk 0:00:12]}  Ne5 {[%clk 0:00:21]} 37. Rb5 {[%clk 0:00:12]}  Qd6 {[%clk 0:00:19]} 38. Rb3 {[%clk 0:00:12]}  Qc5 {[%clk 0:00:18]} 39. Nd1 {[%clk 0:00:11]}  Na4 {[%clk 0:00:16]} 40. Rb5 {[%clk 0:00:12]}  Qd4 {[%clk 0:00:16]} 41. Rd5 {[%clk 0:00:12]}  Qb4 {[%clk 0:00:13]} 42. Rxe5 {[%clk 0:00:12]}  Rd8 {[%clk 0:00:12]} 43. Rd5 {[%clk 0:00:12]}  Rc8 {[%clk 0:00:10]} 44. Ne3 {[%clk 0:00:12]}  Nb6 {[%clk 0:00:05]} 45. Rb5 {[%clk 0:00:12]}  Qd4 {[%clk 0:00:06]} 46. e5 {[%clk 0:00:11]}  Na4 {[%clk 0:00:04]} 47. Rd5 {[%clk 0:00:10]}  Qb4 {[%clk 0:00:04]} 48. Rb5 {[%clk 0:00:11]}  Qd4 {[%clk 0:00:04]} 49. e6 {[%clk 0:00:11]}  fxe6 {[%clk 0:00:04]} 50. Qxg6 {[%clk 0:00:11]}  Nc5 {[%clk 0:00:00]} 51. Bg4 {[%clk 0:00:11]} 1-0


[Site "https://www.chess.com"]